[Event "Polofinale MCR junioru 2023"]
[Site "Czech Republic"]
[Date "2023.11.11"]
[Round "1.1"]
[White "Vojta, Jakub"]
[Black "Benes, Jachym"]
[Result "1/2-1/2"]
[TimeControl "90 min per 40 moves + 15 min + 30 sec / move from move 1"]
[WhiteFideId "382515"]
[BlackFideId "23710870"]
[WhiteElo "2267"]
[BlackElo "1950"]

1. Nf3 {[%clk 01:30:55]} {[%emt 00:00:03]} d5 {[%clk 01:29:17]} {[%emt
00:01:44]} 2. g3 {[%clk 01:31:20]} {[%emt 00:00:05]} Nf6 {[%clk 01:29:35]}
{[%emt 00:00:12]} 3. Bg2 {[%clk 01:31:47]} {[%emt 00:00:03]} Nbd7 {[%clk
01:28:03]} {[%emt 00:02:02]} 4. d4 {[%clk 01:28:18]} {[%emt 00:03:59]} e6
{[%clk 01:28:16]} {[%emt 00:00:18]} 5. O-O {[%clk 01:28:41]} {[%emt 00:00:06]}
Be7 {[%clk 01:28:37]} {[%emt 00:00:09]} 6. c4 {[%clk 01:28:43]} {[%emt
00:00:28]} O-O {[%clk 01:27:54]} {[%emt 00:01:14]} 7. Nbd2 {[%clk 01:28:39]}
{[%emt 00:00:34]} b6 {[%clk 01:27:47]} {[%emt 00:00:37]} 8. Ne5 {[%clk
01:27:24]} {[%emt 00:01:44]} Bb7 {[%clk 01:28:08]} {[%emt 00:00:10]} 9. b3
{[%clk 01:24:53]} {[%emt 00:03:01]} c5 {[%clk 01:26:52]} {[%emt 00:01:45]} 10.
e3 {[%clk 01:22:18]} {[%emt 00:03:05]} Rc8 {[%clk 01:25:27]} {[%emt 00:01:55]}
11. Bb2 {[%clk 01:20:30]} {[%emt 00:02:17]} Qc7 {[%clk 01:22:03]} {[%emt
00:03:55]} 12. Rc1 {[%clk 01:20:17]} {[%emt 00:00:43]} Rfd8 {[%clk 01:20:47]}
{[%emt 00:01:47]} 13. Nxd7 {[%clk 01:03:48]} {[%emt 00:16:58]} Qxd7 {[%clk
01:14:31]} {[%emt 00:06:46]} 14. dxc5 {[%clk 01:04:03]} {[%emt 00:00:15]} bxc5
{[%clk 01:12:41]} {[%emt 00:02:21]} 15. cxd5 {[%clk 01:03:29]} {[%emt
00:01:03]} exd5 {[%clk 01:13:07]} {[%emt 00:00:04]} 16. Qe2 {[%clk 01:02:28]}
{[%emt 00:01:31]} Qe6 {[%clk 01:11:21]} {[%emt 00:02:17]} 17. Rfd1 {[%clk
00:58:50]} {[%emt 00:04:07]} Ba6 {[%clk 01:07:29]} {[%emt 00:04:22]} 18. Qe1
{[%clk 00:58:38]} {[%emt 00:00:42]} h6 {[%clk 01:00:05]} {[%emt 00:07:54]} 19.
Nf3 {[%clk 00:54:42]} {[%emt 00:04:24]} Ne4 {[%clk 00:50:09]} {[%emt 00:10:29]}
20. Qa5 {[%clk 00:54:25]} {[%emt 00:00:46]} Rd6 {[%clk 00:41:48]} {[%emt
00:08:51]} 21. Nd2 {[%clk 00:38:46]} {[%emt 00:16:10]} Ng5 {[%clk 00:22:26]}
{[%emt 00:19:51]} 22. Rxc5 {[%clk 00:37:10]} {[%emt 00:02:07]} Rxc5 {[%clk
00:22:29]} {[%emt 00:00:26]} 23. Qxc5 {[%clk 00:37:34]} {[%emt 00:00:06]} Rc6
{[%clk 00:22:48]} {[%emt 00:00:11]} 24. Qxa7 {[%clk 00:29:02]} {[%emt
00:09:02]} Rc2 {[%clk 00:09:25]} {[%emt 00:13:53]} 25. Bc1 {[%clk 00:21:05]}
{[%emt 00:08:27]} Qc8 {[%clk 00:07:45]} {[%emt 00:02:11]} 26. Qxe7 {[%clk
00:20:41]} {[%emt 00:00:54]} Rxc1 {[%clk 00:08:11]} {[%emt 00:00:04]} 27. Rxc1
{[%clk 00:20:09]} {[%emt 00:01:02]} Qxc1+ {[%clk 00:08:28]} {[%emt 00:00:12]}
28. Bf1 {[%clk 00:19:20]} {[%emt 00:01:19]} 1/2-1/2

[Event "Polofinale MCR junioru 2023"]
[Site "Czech Republic"]
[Date "2023.11.11"]
[Round "1.2"]
[White "Svacina, Tobias"]
[Black "Jun, Rudolf"]
[Result "0-1"]
[TimeControl "90 min per 40 moves + 15 min + 30 sec / move from move 1"]
[WhiteFideId "385859"]
[BlackFideId "376612"]
[WhiteElo "1941"]
[BlackElo "2260"]

1. e4 {[%clk 01:30:11]} {[%emt 00:00:48]} c5 {[%clk 01:30:55]} {[%emt
00:00:06]} 2. Nf3 {[%clk 01:29:38]} {[%emt 00:01:03]} Nc6 {[%clk 01:31:07]}
{[%emt 00:00:17]} 3. d4 {[%clk 01:29:17]} {[%emt 00:00:51]} cxd4 {[%clk
01:31:31]} {[%emt 00:00:06]} 4. Nxd4 {[%clk 01:29:04]} {[%emt 00:00:44]} Nf6
{[%clk 01:28:14]} {[%emt 00:03:47]} 5. Nc3 {[%clk 01:28:44]} {[%emt 00:00:49]}
e5 {[%clk 01:28:35]} {[%emt 00:00:09]} 6. Ndb5 {[%clk 01:28:21]} {[%emt
00:00:52]} d6 {[%clk 01:28:57]} {[%emt 00:00:10]} 7. Nd5 {[%clk 01:27:10]}
{[%emt 00:01:41]} Nxd5 {[%clk 01:29:19]} {[%emt 00:00:08]} 8. exd5 {[%clk
01:27:36]} {[%emt 00:00:04]} Ne7 {[%clk 01:29:42]} {[%emt 00:00:07]} 9. c4
{[%clk 01:27:22]} {[%emt 00:00:44]} Ng6 {[%clk 01:28:41]} {[%emt 00:01:30]} 10.
h4 {[%clk 01:25:20]} {[%emt 00:02:33]} a6 {[%clk 01:25:32]} {[%emt 00:03:39]}
11. h5 {[%clk 01:19:33]} {[%emt 00:06:17]} axb5 {[%clk 01:20:48]} {[%emt
00:05:14]} 12. hxg6 {[%clk 01:19:47]} {[%emt 00:00:15]} fxg6 {[%clk 01:21:06]}
{[%emt 00:00:13]} 13. cxb5 {[%clk 01:12:54]} {[%emt 00:07:23]} Be7 {[%clk
01:19:45]} {[%emt 00:01:51]} 14. Bd3 {[%clk 01:08:19]} {[%emt 00:05:05]} Bf5
{[%clk 01:13:23]} {[%emt 00:06:51]} 15. b4 {[%clk 00:48:09]} {[%emt 00:20:41]}
O-O {[%clk 01:12:29]} {[%emt 00:01:23]} 16. Bxf5 {[%clk 00:43:36]} {[%emt
00:05:04]} Rxf5 {[%clk 01:12:31]} {[%emt 00:00:27]} 17. a4 {[%clk 00:40:34]}
{[%emt 00:03:32]} Qc7 {[%clk 01:11:15]} {[%emt 00:01:46]} 18. Qb3 {[%clk
00:39:01]} {[%emt 00:02:04]} Raf8 {[%clk 01:06:12]} {[%emt 00:05:33]} 19. Rf1
{[%clk 00:30:02]} {[%emt 00:09:30]} Bg5 {[%clk 01:04:55]} {[%emt 00:01:46]} 20.
Bxg5 {[%clk 00:21:11]} {[%emt 00:09:21]} Rxg5 {[%clk 01:05:13]} {[%emt
00:00:11]} 21. Qe3 {[%clk 00:21:07]} {[%emt 00:00:35]} Rg4 {[%clk 01:05:04]}
{[%emt 00:00:39]} 22. Rc1 {[%clk 00:20:39]} {[%emt 00:00:57]} Qf7 {[%clk
00:58:20]} {[%emt 00:07:14]} 23. Qb3 {[%clk 00:19:02]} {[%emt 00:02:07]} Re4+
{[%clk 00:57:40]} {[%emt 00:01:10]} 24. Kd1 {[%clk 00:17:53]} {[%emt 00:01:39]}
Qf4 {[%clk 00:57:37]} {[%emt 00:00:33]} 25. Rc3 {[%clk 00:13:30]} {[%emt
00:04:54]} Rxb4 {[%clk 00:57:34]} {[%emt 00:00:33]} 26. Qc2 {[%clk 00:13:37]}
{[%emt 00:00:23]} Rd4+ {[%clk 00:57:29]} {[%emt 00:00:35]} 27. Ke1 {[%clk
00:12:15]} {[%emt 00:01:52]} Re4+ {[%clk 00:56:04]} {[%emt 00:01:55]} 28. Kd1
{[%clk 00:12:22]} {[%emt 00:00:22]} Rxa4 {[%clk 00:56:21]} {[%emt 00:00:14]} 29.
Rf3 {[%clk 00:07:11]} {[%emt 00:05:41]} Qd4+ {[%clk 00:54:46]} {[%emt
00:02:03]} 0-1

[Event "Polofinale MCR junioru 2023"]
[Site "Czech Republic"]
[Date "2023.11.11"]
[Round "1.3"]
[White "Hak, David"]
[Black "Slaby, Matej"]
[Result "1-0"]
[TimeControl "90 min per 40 moves + 15 min + 30 sec / move from move 1"]
[WhiteFideId "377007"]
[BlackFideId "23734876"]
[WhiteElo "2253"]
[BlackElo "1940"]

1. e4 {[%clk 01:29:05]} {[%emt 00:01:54]} c6 {[%clk 01:30:49]} {[%emt
00:00:12]} 2. Nf3 {[%clk 01:29:15]} {[%emt 00:00:19]} d5 {[%clk 01:31:09]}
{[%emt 00:00:10]} 3. Nc3 {[%clk 01:29:43]} {[%emt 00:00:03]} dxe4 {[%clk
01:31:13]} {[%emt 00:00:26]} 4. Nxe4 {[%clk 01:30:06]} {[%emt 00:00:07]} Nd7
{[%clk 01:30:40]} {[%emt 00:01:03]} 5. d4 {[%clk 01:26:12]} {[%emt 00:04:23]}
Ngf6 {[%clk 01:30:56]} {[%emt 00:00:13]} 6. Ng3 {[%clk 01:24:42]} {[%emt
00:02:01]} e6 {[%clk 01:28:26]} {[%emt 00:03:01]} 7. Bd3 {[%clk 01:24:02]}
{[%emt 00:01:10]} Bd6 {[%clk 01:27:00]} {[%emt 00:01:55]} 8. O-O {[%clk
01:22:49]} {[%emt 00:01:43]} O-O {[%clk 01:26:46]} {[%emt 00:00:45]} 9. Be3
{[%clk 01:16:29]} {[%emt 00:06:49]} b6 {[%clk 01:24:52]} {[%emt 00:02:23]} 10.
a4 {[%clk 01:13:55]} {[%emt 00:03:06]} Bb7 {[%clk 01:20:12]} {[%emt 00:05:10]}
11. a5 {[%clk 01:10:27]} {[%emt 00:03:58]} c5 {[%clk 01:04:12]} {[%emt
00:16:30]} 12. a6 {[%clk 00:49:30]} {[%emt 00:21:28]} Bxf3 {[%clk 00:40:36]}
{[%emt 00:24:05]} 13. Qxf3 {[%clk 00:49:40]} {[%emt 00:00:20]} cxd4 {[%clk
00:40:45]} {[%emt 00:00:21]} 14. Bxd4 {[%clk 00:50:02]} {[%emt 00:00:07]} Be5
{[%clk 00:40:47]} {[%emt 00:00:28]} 15. Ra4 {[%clk 00:40:56]} {[%emt 00:09:36]}
Rc8 {[%clk 00:36:29]} {[%emt 00:04:47]} 16. Ne4 {[%clk 00:35:42]} {[%emt
00:05:45]} Nd5 {[%clk 00:26:18]} {[%emt 00:10:41]} 17. Nd6 {[%clk 00:26:41]}
{[%emt 00:09:32]} b5 {[%clk 00:07:02]} {[%emt 00:19:45]} 18. Nxb5 {[%clk
00:17:44]} {[%emt 00:09:27]} Bxd4 {[%clk 00:06:14]} {[%emt 00:01:18]} 19. Rxd4
{[%clk 00:15:44]} {[%emt 00:02:31]} g6 {[%clk 00:03:08]} {[%emt 00:03:35]} 20.
c4 {[%clk 00:13:43]} {[%emt 00:02:31]} 1-0

[Event "Polofinale MCR junioru 2023"]
[Site "Czech Republic"]
[Date "2023.11.11"]
[Round "1.4"]
[White "Pressler, Tobias"]
[Black "Ocelak, Jakub"]
[Result "1/2-1/2"]
[TimeControl "90 min per 40 moves + 15 min + 30 sec / move from move 1"]
[WhiteFideId "23715359"]
[BlackFideId "23707933"]
[WhiteElo "1937"]
[BlackElo "2238"]

1. e4 {[%clk 01:30:41]} {[%emt 00:00:11]} c5 {[%clk 01:30:15]} {[%emt
00:00:54]} 2. Nc3 {[%clk 01:31:01]} {[%emt 00:00:10]} Nc6 {[%clk 01:30:29]}
{[%emt 00:00:15]} 3. Bb5 {[%clk 01:31:25]} {[%emt 00:00:06]} d6 {[%clk
01:27:27]} {[%emt 00:03:32]} 4. d3 {[%clk 01:29:59]} {[%emt 00:01:56]} Bd7
{[%clk 01:20:30]} {[%emt 00:07:27]} 5. f4 {[%clk 01:28:25]} {[%emt 00:02:05]}
Nf6 {[%clk 01:19:29]} {[%emt 00:01:30]} 6. Nf3 {[%clk 01:28:45]} {[%emt
00:00:10]} a6 {[%clk 01:18:51]} {[%emt 00:01:08]} 7. Bc4 {[%clk 01:28:05]}
{[%emt 00:01:10]} b5 {[%clk 01:09:32]} {[%emt 00:09:49]} 8. Bb3 {[%clk
01:28:30]} {[%emt 00:00:06]} b4 {[%clk 01:09:38]} {[%emt 00:00:23]} 9. Ne2
{[%clk 01:26:39]} {[%emt 00:02:21]} Na5 {[%clk 01:10:01]} {[%emt 00:00:07]} 10.
O-O {[%clk 01:26:06]} {[%emt 00:01:03]} c4 {[%clk 01:06:15]} {[%emt 00:04:16]}
11. Bxc4 {[%clk 01:19:47]} {[%emt 00:06:49]} Nxc4 {[%clk 01:06:19]} {[%emt
00:00:26]} 12. dxc4 {[%clk 01:20:15]} {[%emt 00:00:03]} Nxe4 {[%clk 01:06:30]}
{[%emt 00:00:18]} 13. Be3 {[%clk 01:20:09]} {[%emt 00:00:35]} e6 {[%clk
01:05:35]} {[%emt 00:01:25]} 14. Bd4 {[%clk 01:16:25]} {[%emt 00:04:15]} Bc6
{[%clk 00:58:10]} {[%emt 00:07:54]} 15. Qe1 {[%clk 01:14:06]} {[%emt 00:02:50]}
Qb8 {[%clk 00:51:09]} {[%emt 00:07:31]} 16. Ng3 {[%clk 01:14:05]} {[%emt
00:00:31]} Qb7 {[%clk 00:50:36]} {[%emt 00:01:04]} 17. Rd1 {[%clk 01:06:35]}
{[%emt 00:07:59]} O-O-O {[%clk 00:43:27]} {[%emt 00:07:39]} 18. c3 {[%clk
00:54:31]} {[%emt 00:12:35]} Nxg3 {[%clk 00:40:49]} {[%emt 00:03:07]} 19. Qxg3
{[%clk 00:54:00]} {[%emt 00:01:01]} b3 {[%clk 00:31:44]} {[%emt 00:09:36]} 20.
axb3 {[%clk 00:52:18]} {[%emt 00:02:12]} Qxb3 {[%clk 00:32:04]} {[%emt
00:00:09]} 21. Ra1 {[%clk 00:52:41]} {[%emt 00:00:08]} Bb7 {[%clk 00:32:07]}
{[%emt 00:00:26]} 22. Nd2 {[%clk 00:52:43]} {[%emt 00:00:29]} Qc2 {[%clk
00:32:24]} {[%emt 00:00:12]} 23. Qe3 {[%clk 00:47:08]} {[%emt 00:06:05]} Be7
{[%clk 00:26:38]} {[%emt 00:06:15]} 24. f5 {[%clk 00:42:01]} {[%emt 00:05:39]}
e5 {[%clk 00:24:14]} {[%emt 00:02:54]} 25. Bb6 {[%clk 00:42:25]} {[%emt
00:00:05]} Rd7 {[%clk 00:23:51]} {[%emt 00:00:53]} 26. b4 {[%clk 00:35:40]}
{[%emt 00:07:15]} d5 {[%clk 00:17:54]} {[%emt 00:06:27]} 1/2-1/2

[Event "Polofinale MCR junioru 2023"]
[Site "Czech Republic"]
[Date "2023.11.11"]
[Round "1.5"]
[White "Soucek, Petr"]
[Black "Cerny, Michal"]
[Result "1-0"]
[TimeControl "90 min per 40 moves + 15 min + 30 sec / move from move 1"]
[WhiteFideId "23715170"]
[BlackFideId "391964"]
[WhiteElo "2227"]
[BlackElo "1920"]

1. c4 {[%clk 01:30:56]} {[%emt 00:00:03]} c5 {[%clk 01:30:42]} {[%emt
00:00:18]} 2. Nf3 {[%clk 01:31:18]} {[%emt 00:00:09]} Nc6 {[%clk 01:30:49]}
{[%emt 00:00:23]} 3. Nc3 {[%clk 01:31:06]} {[%emt 00:00:42]} Nf6 {[%clk
01:29:48]} {[%emt 00:01:31]} 4. d4 {[%clk 01:31:28]} {[%emt 00:00:08]} cxd4
{[%clk 01:22:25]} {[%emt 00:07:53]} 5. Nxd4 {[%clk 01:28:17]} {[%emt 00:03:40]}
e6 {[%clk 01:22:49]} {[%emt 00:00:07]} 6. e4 {[%clk 01:28:42]} {[%emt
00:00:05]} Bb4 {[%clk 01:20:35]} {[%emt 00:02:44]} 7. Nxc6 {[%clk 01:29:04]}
{[%emt 00:00:08]} bxc6 {[%clk 01:19:54]} {[%emt 00:01:10]} 8. Bd3 {[%clk
01:29:29]} {[%emt 00:00:06]} Qc7 {[%clk 01:12:42]} {[%emt 00:07:42]} 9. O-O
{[%clk 01:27:05]} {[%emt 00:02:54]} O-O {[%clk 01:12:36]} {[%emt 00:00:36]} 10.
Qe2 {[%clk 01:25:34]} {[%emt 00:02:01]} e5 {[%clk 01:01:57]} {[%emt 00:11:09]}
11. Na4 {[%clk 01:18:18]} {[%emt 00:07:46]} Be7 {[%clk 00:52:50]} {[%emt
00:09:36]} 12. Bd2 {[%clk 01:08:45]} {[%emt 00:10:03]} d6 {[%clk 00:52:04]}
{[%emt 00:01:16]} 13. h3 {[%clk 01:08:31]} {[%emt 00:00:45]} Be6 {[%clk
00:50:22]} {[%emt 00:02:11]} 14. Rac1 {[%clk 01:04:26]} {[%emt 00:04:35]} Nd7
{[%clk 00:47:38]} {[%emt 00:03:15]} 15. b4 {[%clk 01:00:11]} {[%emt 00:04:45]}
f5 {[%clk 00:45:41]} {[%emt 00:02:26]} 16. exf5 {[%clk 00:52:20]} {[%emt
00:08:21]} Bxf5 {[%clk 00:46:08]} {[%emt 00:00:03]} 17. b5 {[%clk 00:44:16]}
{[%emt 00:08:35]} Rac8 {[%clk 00:39:53]} {[%emt 00:06:45]} 18. Rfd1 {[%clk
00:35:31]} {[%emt 00:09:15]} Qb7 {[%clk 00:33:41]} {[%emt 00:06:42]} 19. Bxf5
{[%clk 00:25:46]} {[%emt 00:10:14]} Rxf5 {[%clk 00:34:05]} {[%emt 00:00:06]} 20.
Be3 {[%clk 00:22:29]} {[%emt 00:03:48]} cxb5 {[%clk 00:31:49]} {[%emt
00:02:46]} 21. cxb5 {[%clk 00:22:42]} {[%emt 00:00:17]} Rxc1 {[%clk 00:30:56]}
{[%emt 00:01:23]} 22. Rxc1 {[%clk 00:22:56]} {[%emt 00:00:16]} d5 {[%clk
00:26:11]} {[%emt 00:05:15]} 23. Qc2 {[%clk 00:19:13]} {[%emt 00:04:12]} Rf8
{[%clk 00:24:55]} {[%emt 00:01:46]} 24. Qc6 {[%clk 00:19:18]} {[%emt 00:00:25]}
Rb8 {[%clk 00:24:23]} {[%emt 00:01:03]} 25. Qe6+ {[%clk 00:16:08]} {[%emt
00:03:40]} Kf8 {[%clk 00:24:51]} {[%emt 00:00:02]} 26. Nc5 {[%clk 00:13:26]}
{[%emt 00:03:12]} Nxc5 {[%clk 00:23:52]} {[%emt 00:01:29]} 27. Bxc5 {[%clk
00:13:49]} {[%emt 00:00:07]} Bxc5 {[%clk 00:20:16]} {[%emt 00:04:06]} 28. Rxc5
{[%clk 00:14:08]} {[%emt 00:00:11]} Re8 {[%clk 00:17:17]} {[%emt 00:03:28]} 29.
Qd6+ {[%clk 00:12:57]} {[%emt 00:01:41]} Qe7 {[%clk 00:15:19]} {[%emt
00:02:28]} 30. Qxd5 {[%clk 00:12:50]} {[%emt 00:00:37]} Qe6 {[%clk 00:14:16]}
{[%emt 00:01:33]} 31. Qf3+ {[%clk 00:06:54]} {[%emt 00:06:27]} Kg8 {[%clk
00:13:21]} {[%emt 00:01:24]} 32. a4 {[%clk 00:06:56]} {[%emt 00:00:28]} e4
{[%clk 00:12:41]} {[%emt 00:01:10]} 33. Qe3 {[%clk 00:05:38]} {[%emt 00:01:49]}
Qa2 {[%clk 00:12:29]} {[%emt 00:00:42]} 34. Qd4 {[%clk 00:02:10]} {[%emt
00:03:57]} Qb1+ {[%clk 00:12:53]} {[%emt 00:00:06]} 35. Kh2 {[%clk 00:02:35]}
{[%emt 00:00:05]} Qd3 {[%clk 00:11:24]} {[%emt 00:01:59]} 36. Qe3 {[%clk
00:01:35]} {[%emt 00:01:30]} Qd6+ {[%clk 00:08:55]} {[%emt 00:02:59]} 37. g3
{[%clk 00:01:59]} {[%emt 00:00:06]} Rf8 {[%clk 00:07:56]} {[%emt 00:01:30]} 38.
Kg2 {[%clk 00:01:51]} {[%emt 00:00:37]} Qe7 {[%clk 00:05:43]} {[%emt 00:02:43]}
39. Rc4 {[%clk 00:01:35]} {[%emt 00:00:47]} Re8 {[%clk 00:05:57]} {[%emt
00:00:15]} 40. Qc3 {[%clk 00:01:14]} {[%emt 00:00:51]} Qf7 {[%clk 00:04:34]}
{[%emt 00:01:53]} 41. Rc7 {[%clk 00:01:04]} {[%emt 00:00:41]} Re7 {[%clk
00:05:02]} {[%emt 00:00:02]} 42. Rc8+ {[%clk 00:14:16]} {[%emt 00:02:47]} Re8
{[%clk 00:21:01]} {[%emt 00:00:02]} 43. Qc6 {[%clk 00:14:04]} {[%emt 00:00:42]}
Qf3+ {[%clk 00:19:43]} {[%emt 00:01:48]} 44. Kg1 {[%clk 00:14:20]} {[%emt
00:00:14]} Rxc8 {[%clk 00:19:55]} {[%emt 00:00:18]} 45. Qxc8+ {[%clk 00:14:33]}
{[%emt 00:00:17]} Kf7 {[%clk 00:20:21]} {[%emt 00:00:04]} 46. Qd7+ {[%clk
00:14:19]} {[%emt 00:00:45]} Kf8 {[%clk 00:17:17]} {[%emt 00:03:33]} 47. Qxa7
{[%clk 00:11:43]} {[%emt 00:03:06]} 1-0

[Event "Polofinale MCR junioru 2023"]
[Site "Czech Republic"]
[Date "2023.11.11"]
[Round "1.6"]
[White "Hrbek, Jachym"]
[Black "Seidl, Jan"]
[Result "0-1"]
[TimeControl "90 min per 40 moves + 15 min + 30 sec / move from move 1"]
[WhiteFideId "23709138"]
[BlackFideId "23714522"]
[WhiteElo "1913"]
[BlackElo "2224"]

1. d4 {[%clk 01:30:28]} {[%emt 00:00:31]} d5 {[%clk 01:30:55]} {[%emt
00:00:05]} 2. Nf3 {[%clk 01:30:43]} {[%emt 00:00:11]} Nf6 {[%clk 01:31:19]}
{[%emt 00:00:11]} 3. e3 {[%clk 01:30:55]} {[%emt 00:00:17]} e6 {[%clk
01:30:40]} {[%emt 00:01:09]} 4. Bd3 {[%clk 01:30:58]} {[%emt 00:00:26]} c5
{[%clk 01:29:21]} {[%emt 00:01:50]} 5. c3 {[%clk 01:29:59]} {[%emt 00:01:29]}
Nc6 {[%clk 01:27:33]} {[%emt 00:02:19]} 6. O-O {[%clk 01:28:40]} {[%emt
00:01:48]} Bd6 {[%clk 01:25:01]} {[%emt 00:03:02]} 7. Nbd2 {[%clk 01:27:46]}
{[%emt 00:01:23]} O-O {[%clk 01:20:59]} {[%emt 00:04:32]} 8. e4 {[%clk
01:22:32]} {[%emt 00:05:45]} cxd4 {[%clk 01:19:09]} {[%emt 00:02:20]} 9. cxd4
{[%clk 01:22:36]} {[%emt 00:00:26]} Nb4 {[%clk 01:15:18]} {[%emt 00:04:22]} 10.
Bb1 {[%clk 01:16:24]} {[%emt 00:06:41]} dxe4 {[%clk 01:15:29]} {[%emt
00:00:19]} 11. Nxe4 {[%clk 01:16:27]} {[%emt 00:00:26]} Be7 {[%clk 01:10:45]}
{[%emt 00:05:15]} 12. Re1 {[%clk 01:11:40]} {[%emt 00:05:15]} b6 {[%clk
01:04:26]} {[%emt 00:06:51]} 13. a3 {[%clk 01:08:48]} {[%emt 00:03:21]} Nbd5
{[%clk 01:04:31]} {[%emt 00:00:26]} 14. Qd3 {[%clk 01:05:27]} {[%emt 00:03:51]}
Bb7 {[%clk 00:55:38]} {[%emt 00:09:23]} 15. Nfg5 {[%clk 00:49:51]} {[%emt
00:16:05]} Nxe4 {[%clk 00:46:55]} {[%emt 00:09:14]} 16. Qxe4 {[%clk 00:31:21]}
{[%emt 00:19:00]} g6 {[%clk 00:47:14]} {[%emt 00:00:11]} 17. Qh4 {[%clk
00:29:21]} {[%emt 00:02:28]} Bxg5 {[%clk 00:39:33]} {[%emt 00:08:13]} 18. Bxg5
{[%clk 00:29:30]} {[%emt 00:00:20]} f6 {[%clk 00:39:51]} {[%emt 00:00:13]} 19.
Bh6 {[%clk 00:25:03]} {[%emt 00:04:55]} Re8 {[%clk 00:40:10]} {[%emt 00:00:13]}
20. Qg4 {[%clk 00:18:48]} {[%emt 00:06:44]} f5 {[%clk 00:37:18]} {[%emt
00:03:24]} 21. Qg3 {[%clk 00:15:44]} {[%emt 00:03:32]} Qc7 {[%clk 00:32:18]}
{[%emt 00:05:30]} 22. Qxc7 {[%clk 00:13:47]} {[%emt 00:02:28]} Nxc7 {[%clk
00:32:46]} {[%emt 00:00:02]} 23. Ba2 {[%clk 00:14:11]} {[%emt 00:00:06]} Rac8
{[%clk 00:27:32]} {[%emt 00:05:44]} 24. Rac1 {[%clk 00:13:45]} {[%emt
00:00:55]} Kf7 {[%clk 00:26:21]} {[%emt 00:01:42]} 25. Bf4 {[%clk 00:13:08]}
{[%emt 00:01:07]} Nd5 {[%clk 00:26:43]} {[%emt 00:00:08]} 26. Be5 {[%clk
00:09:24]} {[%emt 00:04:13]} Ne7 {[%clk 00:19:55]} {[%emt 00:07:19]} 27. Bf4
{[%clk 00:08:08]} {[%emt 00:01:44]} Bd5 {[%clk 00:19:49]} {[%emt 00:00:38]} 28.
Bxd5 {[%clk 00:07:44]} {[%emt 00:00:53]} Nxd5 {[%clk 00:20:17]} {[%emt
00:00:03]} 29. Be5 {[%clk 00:07:12]} {[%emt 00:00:32]} Ke7 {[%clk 00:20:11]}
{[%emt 00:00:36]} 30. Kf1 {[%clk 00:07:03]} {[%emt 00:01:08]} Kd7 {[%clk
00:20:24]} {[%emt 00:00:18]} 31. Ke2 {[%clk 00:07:04]} {[%emt 00:00:29]} Rxc1
{[%clk 00:15:26]} {[%emt 00:05:28]} 32. Rxc1 {[%clk 00:07:27]} {[%emt
00:00:06]} Rc8 {[%clk 00:14:03]} {[%emt 00:01:53]} 33. Rxc8 {[%clk 00:07:21]}
{[%emt 00:00:36]} Kxc8 {[%clk 00:14:27]} {[%emt 00:00:06]} 34. h4 {[%clk
00:06:52]} {[%emt 00:00:59]} Kd7 {[%clk 00:14:35]} {[%emt 00:00:22]} 35. Kd3
{[%clk 00:06:44]} {[%emt 00:00:38]} Kc6 {[%clk 00:14:10]} {[%emt 00:00:56]} 36.
g3 {[%clk 00:03:34]} {[%emt 00:03:37]} b5 {[%clk 00:12:20]} {[%emt 00:02:22]}
37. b4 {[%clk 00:03:04]} {[%emt 00:01:00]} Nb6 {[%clk 00:12:08]} {[%emt
00:00:42]} 38. Bf4 {[%clk 00:02:56]} {[%emt 00:00:37]} Kd5 {[%clk 00:12:26]}
{[%emt 00:00:14]} 39. Bc1 {[%clk 00:02:31]} {[%emt 00:00:53]} Nc4 {[%clk
00:12:23]} {[%emt 00:00:35]} 40. f4 {[%clk 00:00:31]} {[%emt 00:02:30]} a6
{[%clk 00:12:11]} {[%emt 00:00:42]} 41. Be3 {[%clk 00:00:33]} {[%emt 00:00:28]}
Nxe3 {[%clk 00:10:22]} {[%emt 00:02:19]} 42. Kxe3 {[%clk 00:00:58]} {[%emt
00:00:05]} Kc4 {[%clk 00:10:48]} {[%emt 00:00:05]} 0-1